bitfinex-derivatives/quotes_BTCF0:USTF0_20241226
["timestamp","ask_amount","ask_price","bid_price","bid_amount"]
[1735256311747,0.052257,95790.0,95789.0,0.1111]
[1735256312737,0.052257,95790.0,95789.0,0.1021]
[1735256313250,0.056257,95790.0,95789.0,0.0991]
[1735256313946,0.056257,95790.0,95789.0,0.0981]
[1735256314246,0.052257,95790.0,95789.0,0.0981]
[1735256314445,0.056257,95790.0,95789.0,1.5991]
[1735256316443,0.056257,95790.0,95789.0,1.5981]
[1735256320347,0.004,95790.0,95789.0,1.650358]
[1735256322055,0.15499683,95795.0,95789.0,1.650358]
[1735256322240,0.0229962,95802.0,95801.0,0.052251]
[1735256322644,0.052241,95820.0,95813.0,0.052245]
[1735256322844,0.00156571,95824.0,95815.0,0.052243]
[1735256323250,0.03775201,95816.0,95815.0,0.052243]
[1735256323551,0.00156571,95824.0,95801.0,1.501]
[1735256323747,0.00156571,95824.0,95819.0,0.052241]
[1735256325149,0.052238,95825.0,95819.0,0.052241]
[1735256325555,0.08853443,95825.0,95819.0,0.052241]
[1735256326346,0.08853443,95825.0,95819.0,0.061241]
[1735256326745,0.08853443,95825.0,95819.0,0.069241]
[1735256327843,0.03629643,95825.0,95819.0,0.017]
[1735256328048,0.07621891,95830.0,95819.0,0.017]
[1735256329155,0.052241,95820.0,95819.0,0.017]
[1735256329349,0.052241,95820.0,95819.0,0.009]
[1735256329551,0.052241,95820.0,95819.0,0.017]
[1735256329752,0.052241,95820.0,95819.0,0.008]
[1735256329943,0.052241,95820.0,95819.0,0.017]
[1735256330957,0.052241,95820.0,95819.0,0.018]
[1735256332953,0.052238,95826.0,95819.0,0.018]
[1735256333161,0.03787478,95830.0,95819.0,0.018]
[1735256333458,0.052238,95825.0,95819.0,0.018]
[1735256334047,0.052238,95825.0,95820.0,1.5]
[1735256335051,0.0369111,95835.0,95820.0,1.5]
[1735256335258,0.052239,95824.0,95820.0,1.5]
[1735256335657,0.05224,95822.0,95820.0,1.509]
[1735256336853,0.05224,95822.0,95820.0,1.518]
[1735256337569,0.07621891,95830.0,95820.0,1.518]
[1735256338061,0.05224,95821.0,95820.0,1.518]
[1735256339152,0.05224,95821.0,95820.0,1.509]
[1735256339454,0.05224,95821.0,95820.0,1.518]
[1735256340057,0.1375828,95837.0,95820.0,1.518]
[1735256340254,0.21689628,95839.0,95820.0,1.518]
[1735256340563,0.25384906,95839.0,95820.0,1.59421891]
[1735256340757,0.25384906,95839.0,95821.0,0.0989]
[1735256340957,0.25384906,95839.0,95822.0,0.05224]
[1735256341152,0.03695278,95839.0,95822.0,0.05224]
[1735256341349,0.21846196,95845.0,95824.0,0.052238]
[1735256341864,0.052228,95844.0,95824.0,0.052238]
[1735256342059,0.21846196,95845.0,95824.0,0.3]
[1735256342666,0.12485625,95836.0,95824.0,0.352238]
[1735256342861,0.052228,95844.0,95824.0,0.3]
[1735256343164,0.052226,95847.0,95827.0,0.052237]
[1735256343464,0.052228,95845.0,95827.0,0.052237]
[1735256343652,0.11311215,95850.0,95827.0,0.352237]
[1735256343852,0.18719217,95859.0,95847.0,1.29]
[1735256344065,0.052226,95848.0,95847.0,1.29]
[1735256345970,0.052226,95848.0,95847.0,1.342226]
[1735256346368,0.052226,95848.0,95847.0,1.351226]
[1735256346758,0.07621891,95860.0,95847.0,1.299]
[1735256346963,0.052229,95851.0,95847.0,1.299]
[1735256347162,0.052229,95851.0,95847.0,1.308]
[1735256347466,0.05223,95848.0,95847.0,1.308]
[1735256347674,0.05223,95848.0,95847.0,0.018]
[1735256348764,0.05223,95848.0,95847.0,0.016]
[1735256349681,0.05223,95848.0,95847.0,0.018]
[1735256350175,0.05223,95848.0,95847.0,0.009]
[1735256350474,0.05223,95848.0,95847.0,0.018]
[1735256350859,0.19112437,95848.0,95847.0,0.018]
[1735256351062,0.19112437,95848.0,95812.0,0.05225]
[1735256351063,0.052245,95822.0,95812.0,0.05225]
[1735256351272,0.12846391,95822.0,95808.0,0.1012]
[1735256351471,0.12846391,95822.0,95814.0,0.052249]
[1735256351680,0.12846391,95822.0,95815.0,1.29]
[1735256352971,0.052245,95821.0,95815.0,1.29]
[1735256353472,0.07621891,95822.0,95815.0,1.29]
[1735256353677,0.052246,95820.0,95815.0,1.29]
[1735256353973,0.052246,95820.0,95815.0,1.342243]
[1735256354977,0.05224,95823.0,95818.0,0.052242]
[1735256355169,0.005,95821.0,95818.0,0.052242]
[1735256355674,0.19253044,95824.0,95815.0,1.29]
[1735256355675,0.052243,95816.0,95815.0,1.29]
[1735256356778,0.056243,95816.0,95815.0,1.342243]
[1735256357674,0.004,95816.0,95815.0,1.342243]
[1735256357977,0.15593618,95827.0,95826.0,0.052237]
[1735256358171,0.052232,95837.0,95828.0,0.052236]
[1735256358172,0.15593618,95829.0,95828.0,0.052236]
[1735256358377,0.18712342,95836.0,95835.0,0.052233]
[1735256358571,0.21689628,95854.0,95835.0,1.29]
[1735256358572,0.03760663,95853.0,95835.0,1.29]
[1735256358884,0.052228,95844.0,95842.0,0.052228]
[1735256359180,0.052228,95844.0,95843.0,0.052228]
[1735256361193,0.052226,95848.0,95844.0,0.052227]
[1735256361992,0.03760663,95853.0,95848.0,0.052225]
[1735256362381,0.052223,95853.0,95848.0,0.052225]
[1735256363495,0.052223,95853.0,95844.0,0.069227]
[1735256363880,0.052223,95853.0,95845.0,0.052227]
[1735256364396,0.001,95850.0,95848.0,0.017]
[1735256365090,0.053223,95853.0,95845.0,0.068227]
[1735256365291,0.052227,95846.0,95845.0,0.016]
[1735256365593,0.052227,95846.0,95828.0,0.00156522]
[1735256365594,0.052236,95829.0,95828.0,0.00156522]
[1735256367098,0.052236,95829.0,95828.0,1.29156522]
[1735256367481,0.07621891,95838.0,95828.0,1.29156522]
[1735256367694,0.07621891,95838.0,95835.0,0.052232]
[1735256367896,0.052228,95844.0,95828.0,1.29256522]
[1735256368099,0.07621891,95840.0,95837.0,0.052231]
[1735256368290,0.052228,95844.0,95829.0,0.2056]
[1735256368485,0.052228,95843.0,95836.0,0.052232]
[1735256368788,0.1049,95845.0,95836.0,0.052232]
[1735256368986,0.05223,95841.0,95836.0,0.052232]
[1735256369387,0.009,95840.0,95837.0,0.001]
[1735256369787,0.009,95840.0,95839.0,0.05223]
[1735256370996,0.008,95841.0,95836.0,0.001]
[1735256371188,0.008,95841.0,95840.0,0.052229]
[1735256371795,0.03745631,95845.0,95840.0,0.052229]
[1735256371987,0.12844491,95847.0,95840.0,0.052229]
[1735256372189,0.002,95841.0,95840.0,0.052229]
[1735256372790,0.01,95841.0,95840.0,0.05423]
[1735256374891,0.01,95841.0,95840.0,0.002]
[1735256375090,0.062229,95841.0,95840.0,0.002]
[1735256376094,0.062229,95841.0,95828.0,0.00156522]
[1735256376095,0.052236,95829.0,95828.0,0.00156522]
[1735256377700,0.058236,95829.0,95828.0,0.00256522]
[1735256378104,0.060236,95829.0,95828.0,0.00256522]
[1735256380598,0.09808547,95829.0,95828.0,0.00256522]
[1735256394703,0.09808547,95829.0,95803.0,0.2081]
[1735256394909,0.052247,95809.0,95804.0,0.052249]
[1735256395306,0.052247,95809.0,95805.0,1.29]
[1735256395494,0.07621891,95813.0,95805.0,1.29]
[1735256395696,0.07621891,95813.0,95812.0,0.052245]
[1735256395906,0.23933387,95819.0,95812.0,0.052245]
[1735256396106,0.23933387,95819.0,95814.0,0.052244]
[1735256396408,0.23933387,95819.0,95815.0,0.052243]
[1735256396605,0.18709187,95819.0,95805.0,1.293]
[1735256396801,0.052239,95824.0,95823.0,0.052239]
[1735256396802,0.18709187,95824.0,95823.0,0.052239]
[1735256397501,0.18709187,95824.0,95823.0,1.342239]
[1735256397700,0.00156557,95829.0,95828.0,0.052236]
[1735256398299,0.00156557,95829.0,95828.0,1.342236]
[1735256398704,0.00356557,95829.0,95828.0,1.342236]
[1735256399604,0.00956557,95829.0,95828.0,1.343236]
[1735256403014,0.052233,95834.0,95833.0,0.052234]
[1735256405306,0.059233,95834.0,95833.0,0.054234]
[1735256406711,0.007,95834.0,95833.0,0.054234]
[1735256409111,0.059233,95834.0,95833.0,0.002]
[1735256409316,0.007,95834.0,95821.0,0.1356091]
[1735256409605,0.007,95834.0,95818.0,0.21241645]
[1735256409606,0.05224,95822.0,95818.0,0.21241645]
[1735256409815,0.052241,95819.0,95818.0,0.21241645]
[1735256410905,0.15243782,95828.0,95801.0,0.052251]
[1735256411110,0.052246,95810.0,95801.0,0.052251]
[1735256411510,0.052252,95800.0,95782.0,0.052261]
[1735256412011,0.052252,95800.0,95773.0,0.0995]
[1735256412214,0.052252,95800.0,95777.0,0.052264]
[1735256412812,0.052252,95800.0,95781.0,0.052262]
[1735256413121,0.0826792,95800.0,95799.0,0.00756568]
[1735256413613,0.0836792,95800.0,95799.0,0.00456568]
[1735256413811,0.0836792,95800.0,95766.0,0.05227]
[1735256413812,0.052265,95777.0,95766.0,0.05227]
[1735256414006,0.07621891,95790.0,95758.0,0.1046]
[1735256414309,0.07621891,95790.0,95761.0,0.052273]
[1735256414509,0.052261,95783.0,95775.0,0.052265]
[1735256414816,0.07621891,95790.0,95761.0,0.352273]
[1735256415110,0.052262,95781.0,95774.0,0.052265]
[1735256415305,0.052262,95781.0,95761.0,0.3]
[1735256415500,0.052262,95781.0,95762.0,0.052272]
[1735256415708,0.052262,95781.0,95761.0,0.3]
[1735256415911,0.052262,95781.0,95779.0,0.052263]
[1735256416310,0.001,95783.0,95782.0,0.052261]
[1735256416614,0.0979,95829.0,95810.0,0.052246]
[1735256416808,0.196,95829.0,95800.0,0.07621891]
[1735256417011,0.052237,95827.0,95816.0,0.052242]
[1735256417209,0.05224,95821.0,95816.0,0.052242]
[1735256417405,0.052237,95827.0,95804.0,0.052249]
[1735256417601,0.052238,95825.0,95817.0,1.29]
[1735256417807,0.0989,95828.0,95817.0,1.29]
[1735256418513,0.0989,95828.0,95827.0,0.052237]
[1735256419117,0.0989,95828.0,95827.0,1.342237]
[1735256419518,0.0999,95828.0,95827.0,1.342237]
[1735256420108,0.1049,95828.0,95827.0,1.291]
[1735256420316,0.4049,95828.0,95790.0,0.00156585]
[1735256420510,0.052254,95796.0,95791.0,0.001]
[1735256420712,0.052253,95798.0,95791.0,0.001]
[1735256421216,0.052254,95797.0,95791.0,0.001]
[1735256421608,0.0962,95799.0,95791.0,0.001]
[1735256421811,0.052255,95794.0,95791.0,0.001]
[1735256422011,0.052255,95794.0,95791.0,0.01]
[1735256422512,0.052255,95794.0,95778.0,1.18]
[1735256422719,0.07621891,95788.0,95764.0,0.052271]
[1735256423016,0.07621891,95790.0,95764.0,0.052271]
[1735256423017,0.07621891,95770.0,95764.0,0.052271]
[1735256423514,0.052271,95765.0,95758.0,0.052274]
[1735256423720,0.07621891,95770.0,95759.0,0.052274]
[1735256423721,0.052271,95764.0,95759.0,0.052274]
[1735256424018,0.052272,95763.0,95759.0,0.052274]
[1735256424403,0.052272,95763.0,95760.0,0.052273]
[1735256424915,0.052282,95745.0,95744.0,0.00156637]
[1735256425522,0.052282,95745.0,95744.0,1.18156637]
[1735256425907,0.053282,95745.0,95744.0,1.18856637]
[1735256426507,0.052282,95745.0,95744.0,1.18756637]
[1735256426712,0.1013,95769.0,95744.0,1.18756637]
[1735256427011,0.1867749,95781.0,95764.0,0.052271]
[1735256427012,0.052271,95765.0,95764.0,0.052271]
[1735256427211,0.1016,95768.0,95744.0,0.00756637]
[1735256427418,0.07621891,95760.0,95758.0,0.052274]
[1735256427719,0.052273,95761.0,95759.0,0.052274]
[1735256427915,0.17781891,95768.0,95759.0,0.052274]
[1735256428113,0.05227,95766.0,95759.0,0.052274]
[1735256428313,0.008,95765.0,95759.0,0.052274]
[1735256428520,0.008,95765.0,95764.0,1.18]
[1735256428825,0.05227,95766.0,95764.0,1.18]
[1735256429018,0.17781891,95768.0,95764.0,1.18]
[1735256429325,0.17781891,95768.0,95766.0,0.05227]
[1735256429511,0.1016,95768.0,95766.0,0.05227]
[1735256430017,0.222,95815.0,95764.0,1.18]
[1735256430220,0.00156638,95790.0,95770.0,0.07621891]
[1735256430517,0.00156638,95790.0,95787.0,0.052259]
[1735256430731,0.00156638,95790.0,95788.0,0.052258]
[1735256432722,0.00356638,95790.0,95788.0,0.067258]
[1735256433920,0.00356638,95790.0,95789.0,1.18]
[1735256434519,0.00256638,95790.0,95789.0,1.18]
[1735256434720,0.00356638,95790.0,95789.0,1.18]
[1735256435218,0.00356638,95790.0,95788.0,0.056258]
[1735256435416,0.00456638,95790.0,95788.0,0.056258]
[1735256435619,0.00856638,95790.0,95789.0,1.18]
[1735256435813,0.00856638,95790.0,95789.0,1.232258]
[1735256436126,0.00856638,95790.0,95789.0,0.052258]
[1735256436424,0.00856638,95790.0,95789.0,1.232258]
[1735256437420,0.00856638,95790.0,95789.0,0.052258]
[1735256437816,0.00556638,95790.0,95789.0,0.052258]
[1735256438022,0.007,95790.0,95789.0,0.052258]
[1735256438425,0.006,95790.0,95789.0,0.052258]
[1735256438727,0.006,95790.0,95789.0,1.232258]
[1735256439112,0.006,95790.0,95789.0,1.239258]
[1735256439113,0.001,95790.0,95789.0,1.239258]
[1735256439320,0.001,95790.0,95789.0,1.240258]
[1735256439716,0.001,95790.0,95789.0,1.239258]
[1735256441223,0.052248,95807.0,95806.0,0.052248]
[1735256442627,0.004,95807.0,95806.0,0.052248]
[1735256443129,0.007,95807.0,95806.0,0.052248]
[1735256444331,0.007,95807.0,95806.0,1.232248]
[1735256444520,0.1867749,95829.0,95828.0,0.052236]
[1735256445321,0.0984,95831.0,95828.0,0.052236]
[1735256445822,0.0984,95831.0,95810.0,0.07621891]
[1735256446023,0.0984,95831.0,95830.0,0.052235]
[1735256446424,0.0994,95831.0,95830.0,0.052235]
[1735256447229,0.0994,95831.0,95830.0,0.060235]
[1735256448433,0.1004,95831.0,95830.0,0.060235]
[1735256448932,0.1004,95831.0,95830.0,0.069235]
[1735256451134,0.002,95831.0,95830.0,0.069235]
[1735256458233,0.054235,95831.0,95830.0,0.017]
[1735256458428,0.002,95831.0,95810.0,0.052246]
[1735256458633,0.07621891,95820.0,95811.0,0.052246]
[1735256459037,0.05224,95822.0,95811.0,0.052246]
[1735256459239,0.052241,95819.0,95811.0,0.052246]
[1735256460437,0.001,95831.0,95830.0,0.052235]
[1735256460936,0.001,95831.0,95830.0,1.232235]
[1735256461746,0.052232,95836.0,95830.0,1.232235]
[1735256462344,0.001,95831.0,95830.0,1.232235]
[1735256463044,0.07949431,95836.0,95830.0,1.232235]
[1735256463248,0.001,95831.0,95830.0,1.235235]
[1735256464741,0.002,95831.0,95830.0,1.237235]
[1735256465047,0.001,95831.0,95830.0,1.241235]
[1735256465548,0.001,95831.0,95830.0,0.061235]
[1735256465849,0.002,95831.0,95830.0,0.062235]
[1735256467346,0.002,95831.0,95830.0,0.01]
[1735256469155,0.054235,95831.0,95830.0,0.01]
[1735256469451,0.052246,95810.0,95801.0,0.2287]
[1735256469640,0.052246,95810.0,95805.0,1.49176934]
[1735256470258,0.052248,95807.0,95805.0,1.49176934]
[1735256470443,0.052248,95806.0,95805.0,1.49176934]
[1735256470950,0.052248,95806.0,95798.0,0.25029969]
[1735256471346,0.052249,95804.0,95799.0,1.18]
[1735256471547,0.05225,95803.0,95799.0,1.18]
[1735256472643,0.004,95806.0,95799.0,1.18]
[1735256472844,0.052251,95801.0,95799.0,1.232252]
[1735256473156,0.002,95803.0,95799.0,1.232252]
[1735256473450,0.052252,95800.0,95799.0,1.232252]
[1735256475058,0.056252,95800.0,95799.0,1.18]
[1735256475644,0.052252,95800.0,95799.0,1.18]
[1735256475841,0.056252,95800.0,95799.0,1.18]
[1735256476649,0.060252,95800.0,95799.0,1.18]
[1735256476845,0.060252,95800.0,95799.0,1.232252]
[1735256477344,0.056252,95800.0,95799.0,1.232252]
[1735256477546,0.057252,95800.0,95799.0,1.232252]
[1735256477855,0.060252,95800.0,95799.0,1.232252]
[1735256479057,0.003,95800.0,95799.0,1.232252]
[1735256479243,0.1867749,95814.0,95813.0,0.052245]
[1735256479450,0.1867749,95814.0,95805.0,0.052248]
[1735256479451,0.1867749,95815.0,95814.0,0.052244]
[1735256479856,0.1867749,95815.0,95814.0,1.232244]
[1735256480856,0.052233,95836.0,95835.0,0.052232]
[1735256481445,0.052233,95836.0,95835.0,1.232232]
[1735256481844,0.00156572,95840.0,95839.0,0.05223]
[1735256482057,0.05379572,95840.0,95839.0,0.05223]
[1735256482857,0.07906207,95840.0,95839.0,0.05223]
[1735256483057,0.02683207,95840.0,95839.0,0.05223]
[1735256483665,0.001,95836.0,95835.0,1.192]
[1735256484054,0.001,95836.0,95835.0,1.244233]
[1735256484250,0.02783207,95840.0,95839.0,0.006]
[1735256484656,0.02783207,95840.0,95839.0,0.011]
[1735256484857,0.02526635,95840.0,95839.0,0.05723]
[1735256485061,0.1867749,95842.0,95839.0,0.05723]
[1735256485655,0.1867749,95842.0,95840.0,0.05223]
[1735256486957,0.1867749,95841.0,95840.0,0.05223]
[1735256487265,0.1867749,95841.0,95840.0,0.05623]
[1735256488060,0.1867749,95841.0,95840.0,0.05223]
[1735256488266,0.1877749,95841.0,95840.0,0.004]
[1735256488664,0.1887749,95841.0,95840.0,0.01]
[1735256489566,0.002,95841.0,95840.0,0.01]
[1735256494168,0.002,95841.0,95840.0,0.06223]
[1735256495168,0.15799068,95841.0,95840.0,0.06223]
[1735256496372,0.15799068,95841.0,95840.0,0.01]
[1735256496670,0.002,95841.0,95840.0,0.01]
[1735256499772,0.054229,95841.0,95840.0,0.01]
[1735256505160,0.054229,95841.0,95816.0,0.1117]
[1735256505161,0.302,95841.0,95810.0,0.052246]
[1735256505363,0.302,95841.0,95803.0,0.25029969]
[1735256505364,0.05224,95821.0,95803.0,0.25029969]
[1735256505667,0.05224,95821.0,95810.0,0.052246]
[1735256506967,0.05224,95821.0,95804.0,0.1155]
[1735256507373,0.06124,95821.0,95804.0,0.1155]
[1735256507777,0.07024,95821.0,95806.0,0.052248]
[1735256508078,0.07024,95821.0,95807.0,0.052247]
[1735256508267,0.07024,95821.0,95804.0,0.1155]
[1735256508576,0.09248815,95821.0,95798.0,1.18]
[1735256508766,0.05225,95803.0,95798.0,1.18]
[1735256508968,0.07621891,95814.0,95798.0,1.18]
[1735256509369,0.052252,95799.0,95798.0,1.18]
[1735256509676,0.07621891,95814.0,95789.0,0.36639969]
[1735256509677,0.052257,95790.0,95789.0,0.36639969]
[1735256510082,0.052257,95790.0,95789.0,1.54639969]
[1735256510577,0.052257,95790.0,95789.0,1.2961]
[1735256511971,0.054257,95790.0,95789.0,1.2961]
[1735256513079,0.002,95790.0,95789.0,1.348358]
[1735256514372,0.054257,95790.0,95789.0,1.348358]
[1735256516274,0.054257,95790.0,95789.0,1.18]
[1735256516475,0.054257,95790.0,95789.0,1.232258]
[1735256520877,0.002,95790.0,95789.0,1.232258]
[1735256521976,0.052252,95800.0,95799.0,0.052252]
[1735256523784,0.058252,95800.0,95799.0,0.052252]
[1735256526386,0.006,95800.0,95799.0,0.052252]
[1735256536601,0.21790406,95816.0,95815.0,0.052243]
[1735256537000,0.21790406,95816.0,95815.0,1.232243]
[1735256537396,0.02252559,95817.0,95816.0,0.052243]
[1735256537698,0.24705991,95820.0,95819.0,0.052241]
[1735256537899,0.170841,95820.0,95819.0,0.052241]
[1735256539199,0.1186,95820.0,95819.0,0.052241]
[1735256540401,0.14143813,95820.0,95819.0,0.052241]
[1735256540597,0.15743813,95820.0,95819.0,0.053241]
[1735256546902,0.20967913,95820.0,95819.0,0.053241]
[1735256547500,0.20967913,95820.0,95819.0,0.001]
[1735256553704,0.068241,95820.0,95819.0,0.001]
[1735256554810,0.016,95820.0,95819.0,0.053241]
[1735256556306,0.14086119,95820.0,95819.0,0.053241]
[1735256557708,0.016,95820.0,95819.0,0.053241]
[1735256558205,0.016,95820.0,95819.0,1.233241]
[1735256559009,0.12478671,95830.0,95826.0,0.052237]
[1735256559209,0.12478671,95830.0,95829.0,0.052236]
[1735256559509,0.17702171,95830.0,95829.0,0.052236]
[1735256560212,0.17802171,95830.0,95829.0,0.052236]
[1735256560413,0.053235,95830.0,95829.0,0.052236]
[1735256560614,0.053235,95830.0,95829.0,0.054236]
[1735256562716,0.054235,95830.0,95829.0,0.063236]
[1735256564920,0.002,95830.0,95829.0,0.063236]
[1735256575338,0.001,95830.0,95829.0,0.054236]
[1735256575538,0.009,95830.0,95829.0,0.055236]
[1735256575739,0.017,95830.0,95829.0,0.054236]
[1735256577735,0.017,95830.0,95829.0,1.234236]
[1735256582944,0.017,95830.0,95829.0,1.42163629]
[1735256583339,0.09350114,95835.0,95829.0,1.42163629]
[1735256583340,0.27127648,95844.0,95843.0,0.052228]
[1735256584247,0.15607648,95844.0,95843.0,1.232228]
[1735256584449,0.18725161,95851.0,95844.0,0.052228]
[1735256584839,0.18725161,95851.0,95844.0,0.352228]
[1735256585953,0.2229,95877.0,95844.0,0.352228]
[1735256585954,0.2229,95877.0,95846.0,0.052226]
[1735256586447,0.2229,95877.0,95846.0,0.352226]
[1735256587144,0.2229,95877.0,95853.0,0.25225725]
[1735256587350,0.2229,95877.0,95867.0,0.07606588]
[1735256589049,0.2229,95877.0,95860.0,0.07606588]
[1735256589256,0.2229,95877.0,95862.0,0.052218]
[1735256590347,0.2229,95877.0,95860.0,0.09434834]
[1735256590548,0.2229,95877.0,95863.0,0.052217]
[1735256590751,0.2229,95877.0,95860.0,0.09434834]
[1735256591050,0.2229,95877.0,95864.0,0.052217]
[1735256593954,0.07606588,95874.0,95860.0,0.01828246]
[1735256594158,0.07606588,95874.0,95830.0,0.15946588]
[1735256594345,0.052229,95842.0,95840.0,0.05223]
[1735256594653,0.2513,95841.0,95840.0,0.05223]
[1735256595046,0.303529,95841.0,95840.0,0.05223]
[1735256595559,0.303529,95841.0,95840.0,0.05623]
[1735256596558,0.052232,95837.0,95836.0,0.052231]
[1735256596856,0.2513,95841.0,95839.0,0.05223]
[1735256597055,0.2513,95841.0,95829.0,0.35084]
[1735256597056,0.2513,95841.0,95829.0,0.36925347]
[1735256597357,0.303529,95841.0,95829.0,0.36925347]
[1735256597655,0.303529,95841.0,95839.0,0.05223]
[1735256597852,0.303529,95841.0,95829.0,0.36925347]
[1735256598042,0.303529,95841.0,95840.0,0.05223]
[1735256598451,0.303529,95841.0,95829.0,0.36925347]
[1735256598651,0.303529,95841.0,95840.0,0.05223]
[1735256599046,0.307529,95841.0,95840.0,0.05223]
[1735256599755,0.304529,95841.0,95840.0,0.05223]
[1735256600256,0.309529,95841.0,95840.0,0.05223]
[1735256600450,0.308529,95841.0,95840.0,0.05223]
[1735256600657,0.311529,95841.0,95840.0,0.05223]
[1735256603346,0.2593,95841.0,95829.0,0.35084]
[1735256603551,0.2593,95841.0,95820.0,0.00156508]
[1735256603552,0.052239,95825.0,95824.0,0.052238]
[1735256604655,0.2593,95841.0,95820.0,0.00156508]
[1735256604857,0.052233,95835.0,95834.0,0.052232]
[1735256606463,0.054233,95835.0,95834.0,0.052232]
[1735256606864,0.056233,95835.0,95834.0,0.052232]
[1735256624663,0.2114987,95835.0,95834.0,0.052232]
[1735256625772,0.10702689,95835.0,95834.0,0.052232]
[1735256627071,0.056233,95835.0,95834.0,0.052232]
[1735256627261,0.052237,95827.0,95822.0,0.052239]
[1735256627467,0.04997927,95832.0,95820.0,0.00156508]
[1735256627666,0.05224,95821.0,95820.0,0.00156508]
[1735256628271,0.05224,95821.0,95820.0,0.05380608]
[1735256628977,0.05224,95821.0,95820.0,0.05780608]
[1735256629979,0.15622205,95823.0,95820.0,0.00556508]
[1735256630179,0.15622205,95823.0,95822.0,0.05224]
[1735256630976,0.15622205,95830.0,95829.0,0.052236]
[1735256632169,0.20845305,95838.0,95822.0,0.05224]
[1735256632365,0.12495322,95831.0,95822.0,0.05224]
[1735256632675,0.001,95830.0,95823.0,0.052239]
[1735256632870,0.001,95830.0,95822.0,0.05224]
[1735256633265,0.001,95830.0,95822.0,0.05524]
[1735256633473,0.001,95830.0,95829.0,0.052236]
[1735256634179,0.12495322,95831.0,95829.0,0.052236]
[1735256634981,0.001,95830.0,95829.0,0.052236]
[1735256635873,0.001,95830.0,95822.0,0.36389682]
[1735256635874,0.001,95831.0,95822.0,0.36389682]
[1735256636179,0.001,95831.0,95830.0,0.052235]
[1735256636974,0.12495322,95832.0,95830.0,0.352235]
[1735256637176,0.00775322,95832.0,95830.0,0.352235]
[1735256637379,2.2e-07,95832.0,95831.0,0.0779]
[1735256637769,0.15622205,95845.0,95844.0,0.052228]
[1735256638981,0.001,95845.0,95844.0,0.054228]
[1735256639479,0.001,95845.0,95844.0,0.052228]
[1735256640371,0.052222,95855.0,95854.0,0.052222]
[1735256641780,0.056222,95855.0,95854.0,0.052222]
[1735256642177,0.052222,95855.0,95854.0,0.052222]
[1735256642379,0.056222,95855.0,95854.0,0.052222]
[1735256642685,0.052222,95855.0,95854.0,0.052222]
[1735256642869,0.004,95855.0,95848.0,0.052225]
[1735256643073,0.052225,95849.0,95848.0,0.052225]
[1735256643877,0.057222,95855.0,95854.0,0.052222]
[1735256644385,0.056222,95855.0,95854.0,0.052222]
[1735256644769,0.21244405,95855.0,95854.0,0.052222]
[1735256645181,0.21344405,95855.0,95854.0,0.052222]
[1735256645484,0.20944405,95855.0,95854.0,0.052222]
[1735256645679,0.21344405,95855.0,95854.0,0.052222]
[1735256645878,0.057222,95855.0,95854.0,0.052222]
[1735256647882,0.057222,95855.0,95854.0,0.053222]
[1735256648785,0.005,95855.0,95854.0,0.053222]
[1735256650470,0.004,95855.0,95854.0,0.053222]
[1735256650678,0.005,95855.0,95854.0,0.053222]
[1735256650881,0.003,95855.0,95854.0,0.052222]
[1735256651380,0.001,95855.0,95854.0,0.052222]
[1735256651683,0.003,95855.0,95854.0,0.052222]
[1735256652074,0.004,95855.0,95854.0,0.052222]
[1735256652774,0.003,95855.0,95854.0,0.052222]
[1735256652974,0.004,95855.0,95854.0,0.052222]
[1735256661191,0.003,95855.0,95854.0,0.052222]
[1735256661585,0.001,95855.0,95854.0,0.052222]
[1735256661785,0.003,95855.0,95854.0,0.052222]
[1735256675701,0.003,95855.0,95854.0,0.30246827]
[1735256677206,0.003,95855.0,95854.0,0.052222]
[1735256681705,1e-06,95855.0,95854.0,0.36387882]
[1735256683506,1e-06,95855.0,95854.0,0.37611915]
[1735256683808,0.0689,95868.0,95867.0,0.052215]
[1735256685415,0.0689,95868.0,95867.0,0.30230996]
[1735256686207,0.0709,95868.0,95867.0,0.30330996]
[1735256686707,0.0709,95868.0,95867.0,0.053215]
[1735256692621,0.0709,95868.0,95867.0,0.06743845]
[1735256706128,0.0709,95868.0,95867.0,0.31774059]
[1735256711437,0.19607512,95868.0,95867.0,0.06743845]
[1735256715952,0.0709,95868.0,95867.0,0.06743845]
[1735256721363,0.0709,95868.0,95858.0,0.04993475]
[1735256721364,0.052216,95866.0,95847.0,0.052226]
[1735256721549,0.052217,95864.0,95863.0,0.3132431]
[1735256721948,0.052217,95864.0,95844.0,0.06597801]
[1735256722160,0.052218,95862.0,95845.0,0.052227]
[1735256722455,0.052227,95845.0,95844.0,0.01375101]
[1735256722662,0.052227,95845.0,95842.0,0.93530801]
[1735256723263,0.052228,95843.0,95842.0,0.93530801]
[1735256723562,0.052231,95838.0,95837.0,0.18780775]
[1735256724971,0.15604298,95839.0,95834.0,0.05379802]
[1735256725266,0.052232,95836.0,95834.0,0.05379802]
[1735256725561,0.052232,95836.0,95835.0,0.052233]
[1735256728461,0.052232,95836.0,95835.0,0.059233]
[1735256730561,0.09342803,95838.0,95835.0,0.007]
[1735256730763,0.09342803,95840.0,95838.0,0.052231]
[1735256731361,0.14565803,95840.0,95838.0,0.052231]
[1735256732169,0.09342803,95839.0,95838.0,0.057231]
[1735256733664,0.09342803,95839.0,95838.0,0.058231]
[1735256734570,0.09342803,95840.0,95839.0,0.05223]
[1735256736172,0.09342803,95850.0,95839.0,0.05623]